[Event "*** Titled Tuesday Blitz"]
[Site "Chess.com"]
[Date "2020.10.20"]
[Round "11"]
[White "K_A_S_T_O_R"]
[Black "sotochess"]
[Result "1-0"]
[WhiteElo "2816"]
[BlackElo "2638"]
[TimeControl "180+1"]
[EndTime "12:07:05 PDT"]
[Termination "K_A_S_T_O_R won by resignation"]

1. e4 {[%clk 0:03:00.9]} 1... d5 {[%clk 0:02:59.7]} 2. exd5 {[%clk 0:02:58.7]}
2... Qxd5 {[%clk 0:02:59.6]} 3. Nc3 {[%clk 0:02:58.9]} 3... Qa5 {[%clk
0:02:59.4]} 4. g3 {[%clk 0:02:59.1]} 4... c6 {[%clk 0:02:54]} 5. Bg2 {[%clk
0:02:58.6]} 5... Nf6 {[%clk 0:02:54.9]} 6. h3 {[%clk 0:02:58.5]} 6... Bf5 {[%clk
0:02:54.1]} 7. Nf3 {[%clk 0:02:57]} 7... Nbd7 {[%clk 0:02:53.7]} 8. O-O {[%clk
0:02:57.3]} 8... e6 {[%clk 0:02:53.1]} 9. d3 {[%clk 0:02:57.7]} 9... h6 {[%clk
0:02:52.7]} 10. Qe2 {[%clk 0:02:57.2]} 10... Be7 {[%clk 0:02:49.4]} 11. Re1
{[%clk 0:02:53.7]} 11... O-O {[%clk 0:02:48.8]} 12. a3 {[%clk 0:02:52.7]} 12...
Rfe8 {[%clk 0:02:46]} 13. Bd2 {[%clk 0:02:49.3]} 13... Qc7 {[%clk 0:02:44.2]}
14. b4 {[%clk 0:02:49.8]} 14... a6 {[%clk 0:02:29.9]} 15. Rab1 {[%clk 0:02:48]}
15... Nd5 {[%clk 0:02:21.5]} 16. Ne4 {[%clk 0:02:47.6]} 16... Bh7 {[%clk
0:02:19.4]} 17. Rbd1 {[%clk 0:02:38.9]} 17... Bf8 {[%clk 0:02:14.1]} 18. c4
{[%clk 0:02:37.8]} 18... N5f6 {[%clk 0:02:12]} 19. Bf4 {[%clk 0:02:36.3]} 19...
e5 {[%clk 0:02:00]} 20. Nxf6+ {[%clk 0:02:34.9]} 20... gxf6 {[%clk 0:02:00.9]}
21. Bc1 {[%clk 0:02:34.4]} 21... a5 {[%clk 0:02:01.1]} 22. c5 {[%clk 0:02:23.6]}
22... axb4 {[%clk 0:02:00.5]} 23. axb4 {[%clk 0:02:24.5]} 23... b6 {[%clk
0:01:59.9]} 24. d4 {[%clk 0:02:23.5]} 24... exd4 {[%clk 0:01:30.5]} 25. Qxe8
{[%clk 0:02:21.3]} 25... Rxe8 {[%clk 0:01:30.8]} 26. Rxe8 {[%clk 0:02:21.5]}
26... bxc5 {[%clk 0:01:31.2]} 27. bxc5 {[%clk 0:02:19.8]} 27... Nxc5 {[%clk
0:01:30.4]} 28. Bxh6 {[%clk 0:02:04.1]} 28... Nd7 {[%clk 0:01:30.2]} 29. Rxd4
{[%clk 0:01:59.8]} 29... Bf5 {[%clk 0:01:30]} 30. Bxf8 {[%clk 0:01:32]} 30...
Nxf8 {[%clk 0:01:22.7]} 31. Rdd8 {[%clk 0:01:32.4]} 31... Kg7 {[%clk 0:01:22.6]}
32. Rxf8 {[%clk 0:01:32.5]} 32... c5 {[%clk 0:01:20.4]} 33. Rg8+ {[%clk
0:01:28.1]} 33... Kh6 {[%clk 0:01:18.3]} 34. Rh8+ {[%clk 0:01:27.6]} 34... Bh7
{[%clk 0:01:18.2]} 35. Rdg8 {[%clk 0:01:21.3]} 35... c4 {[%clk 0:01:11]} 36. Nh4
{[%clk 0:01:18.2]} 36... Qe5 {[%clk 0:01:10.9]} 37. f4 {[%clk 0:01:16.5]} 37...
Qc5+ {[%clk 0:01:08.7]} 38. Kh2 {[%clk 0:01:15.6]} 38... f5 {[%clk 0:01:08.8]}
39. g4 {[%clk 0:01:10.9]} 39... fxg4 {[%clk 0:00:59.4]} 40. hxg4 {[%clk
0:01:07.1]} 40... f6 {[%clk 0:00:59.7]} 41. Nf5+ {[%clk 0:01:05.1]} 1-0

[Event "*** Titled Tuesday Blitz"]
[Site "Chess.com"]
[Date "2020.10.20"]
[Round "11"]
[White "Carnivoras"]
[Black "BigAl"]
[Result "1-0"]
[WhiteElo "2640"]
[BlackElo "2482"]
[TimeControl "180+1"]
[EndTime "12:07:09 PDT"]
[Termination "Carnivoras won by resignation"]

1. d4 {[%clk 0:03:00.9]} 1... Nf6 {[%clk 0:02:59.8]} 2. c4 {[%clk 0:03:01.4]}
2... g6 {[%clk 0:03:00.4]} 3. Nc3 {[%clk 0:03:02]} 3... Bg7 {[%clk 0:03:01.1]}
4. e4 {[%clk 0:03:02.6]} 4... O-O {[%clk 0:03:01.9]} 5. Nf3 {[%clk 0:03:02.3]}
5... d6 {[%clk 0:03:02.5]} 6. Be2 {[%clk 0:03:02.6]} 6... Bg4 {[%clk 0:03:03.2]}
7. O-O {[%clk 0:03:02.2]} 7... Nbd7 {[%clk 0:03:03]} 8. Nd2 {[%clk 0:02:59.4]}
8... Bxe2 {[%clk 0:03:01.5]} 9. Qxe2 {[%clk 0:02:59.5]} 9... e5 {[%clk 0:03:01]}
10. d5 {[%clk 0:02:59.6]} 10... a5 {[%clk 0:03:00.2]} 11. b3 {[%clk 0:02:54.2]}
11... Nh5 {[%clk 0:02:59.8]} 12. g3 {[%clk 0:02:43.4]} 12... b6 {[%clk 0:03:00]}
13. a3 {[%clk 0:02:42.4]} 13... Qe8 {[%clk 0:02:59.8]} 14. Bb2 {[%clk
0:02:39.9]} 14... f5 {[%clk 0:02:59.1]} 15. exf5 {[%clk 0:02:39.4]} 15... gxf5
{[%clk 0:02:58.8]} 16. Nb5 {[%clk 0:02:39.1]} 16... Rc8 {[%clk 0:02:58.3]} 17.
b4 {[%clk 0:02:35.5]} 17... Qg6 {[%clk 0:02:56.8]} 18. Kh1 {[%clk 0:02:31.4]}
18... Kh8 {[%clk 0:02:55]} 19. Bc3 {[%clk 0:02:24.2]} 19... a4 {[%clk
0:02:53.9]} 20. Rae1 {[%clk 0:02:08.8]} 20... Ndf6 {[%clk 0:02:51.3]} 21. Nf3
{[%clk 0:01:56.6]} 21... Ne4 {[%clk 0:02:40]} 22. Nh4 {[%clk 0:01:47.6]} 22...
Qf6 {[%clk 0:02:39.9]} 23. Qxh5 {[%clk 0:01:45.2]} 23... Bh6 {[%clk 0:02:29]}
24. Nxf5 {[%clk 0:01:22.9]} 24... Qxf5 {[%clk 0:02:25.7]} 25. Qxf5 {[%clk
0:01:22.4]} 25... Rxf5 {[%clk 0:02:26.2]} 26. Rxe4 {[%clk 0:01:22]} 26... Rf3
{[%clk 0:02:26.1]} 27. Kg2 {[%clk 0:01:20.3]} 27... Rcf8 {[%clk 0:02:26.8]} 28.
Bb2 {[%clk 0:01:14.7]} 28... Rb3 {[%clk 0:02:24]} 29. Bc1 {[%clk 0:01:14.4]}
29... Bxc1 {[%clk 0:02:19.2]} 30. Rxc1 {[%clk 0:01:15.3]} 30... Rb2 {[%clk
0:02:17.1]} 31. Rf1 {[%clk 0:01:05.9]} 31... Rf7 {[%clk 0:02:17.4]} 32. Re3
{[%clk 0:01:04]} 32... Kg7 {[%clk 0:02:16]} 33. Rf3 {[%clk 0:01:03.8]} 33... Re7
{[%clk 0:02:16.5]} 34. Re1 {[%clk 0:01:01.5]} 34... Rc2 {[%clk 0:02:16.5]} 35.
Re4 {[%clk 0:01:01.1]} 35... h5 {[%clk 0:02:15.1]} 36. Rh4 {[%clk 0:00:58]}
36... Kg6 {[%clk 0:02:14.5]} 37. Nc3 {[%clk 0:00:58.1]} 37... Rf7 {[%clk
0:02:08.9]} 38. Rxf7 {[%clk 0:00:55.4]} 38... Kxf7 {[%clk 0:02:09.8]} 39. Nxa4
{[%clk 0:00:54.9]} 39... Kg6 {[%clk 0:02:05.6]} 40. Re4 {[%clk 0:00:52]} 40...
Kf5 {[%clk 0:02:05.7]} 41. Re3 {[%clk 0:00:51.1]} 41... Rxc4 {[%clk 0:02:05.2]}
42. Rc3 {[%clk 0:00:51]} 42... Rd4 {[%clk 0:01:56.7]} 43. Rxc7 {[%clk
0:00:45.5]} 43... b5 {[%clk 0:01:56.9]} 44. Nc3 {[%clk 0:00:45.3]} 44... e4
{[%clk 0:01:55.8]} 45. Rc6 {[%clk 0:00:42.5]} 45... Ke5 {[%clk 0:01:55.5]} 46.
Rxd6 {[%clk 0:00:42.6]} 46... Rd3 {[%clk 0:01:54]} 47. Re6+ {[%clk 0:00:41.7]}
47... Kd4 {[%clk 0:01:51.1]} 48. Nxb5+ {[%clk 0:00:41.8]} 48... Kxd5 {[%clk
0:01:51.6]} 49. Rd6+ {[%clk 0:00:41.7]} 49... Kc4 {[%clk 0:01:52.1]} 50. Rb6
{[%clk 0:00:37.6]} 50... Rd2 {[%clk 0:01:49.9]} 51. Nd6+ {[%clk 0:00:37.6]}
51... Kd5 {[%clk 0:01:49.2]} 52. Nf5 {[%clk 0:00:36.6]} 52... Kc4 {[%clk
0:01:44]} 53. Ne3+ {[%clk 0:00:36.4]} 53... Kd3 {[%clk 0:01:44.2]} 54. Rd6+
{[%clk 0:00:36.1]} 54... Ke2 {[%clk 0:01:44.7]} 55. Rxd2+ {[%clk 0:00:36.8]}
55... Kxd2 {[%clk 0:01:45.6]} 56. b5 {[%clk 0:00:37.4]} 1-0

[Event "*** Titled Tuesday Blitz"]
[Site "Chess.com"]
[Date "2020.10.20"]
[Round "11"]
[White "Flopezin"]
[Black "ShahMatKanal"]
[Result "0-1"]
[WhiteElo "2344"]
[BlackElo "2440"]
[TimeControl "180+1"]
[EndTime "12:07:19 PDT"]
[Termination "ShahMatKanal won by resignation"]

1. c4 {[%clk 0:03:00.9]} 1... e5 {[%clk 0:02:57.8]} 2. Nc3 {[%clk 0:03:00.6]}
2... Nc6 {[%clk 0:02:53.5]} 3. Nf3 {[%clk 0:03:00.5]} 3... Bb4 {[%clk
0:02:48.6]} 4. Nd5 {[%clk 0:02:58.1]} 4... Bc5 {[%clk 0:02:44.9]} 5. d3 {[%clk
0:02:55.5]} 5... Nf6 {[%clk 0:02:40.5]} 6. g3 {[%clk 0:02:53.4]} 6... d6 {[%clk
0:02:25.7]} 7. Bg5 {[%clk 0:02:45.4]} 7... Bb4+ {[%clk 0:01:25.1]} 8. Nxb4
{[%clk 0:02:43.1]} 8... Nxb4 {[%clk 0:01:24.3]} 9. Bg2 {[%clk 0:02:40.5]} 9...
h6 {[%clk 0:01:22.5]} 10. Bd2 {[%clk 0:02:39.5]} 10... Nc6 {[%clk 0:01:22.1]}
11. Bc3 {[%clk 0:02:35.6]} 11... Bg4 {[%clk 0:01:17.8]} 12. h3 {[%clk
0:02:34.8]} 12... Be6 {[%clk 0:01:14.2]} 13. O-O {[%clk 0:02:33.6]} 13... Qd7
{[%clk 0:01:14.4]} 14. Kh2 {[%clk 0:02:34]} 14... g5 {[%clk 0:00:53.5]} 15. b4
{[%clk 0:02:32.9]} 15... g4 {[%clk 0:00:42.7]} 16. Ng1 {[%clk 0:02:33.1]} 16...
gxh3 {[%clk 0:00:40]} 17. Bxh3 {[%clk 0:02:33.5]} 17... h5 {[%clk 0:00:37.1]}
18. b5 {[%clk 0:02:20.7]} 18... Nd4 {[%clk 0:00:35.5]} 19. Bxd4 {[%clk
0:02:04.7]} 19... exd4 {[%clk 0:00:35.6]} 20. Bxe6 {[%clk 0:02:05.3]} 20... fxe6
{[%clk 0:00:35.7]} 21. Nf3 {[%clk 0:02:06.1]} 21... h4 {[%clk 0:00:32.6]} 22.
gxh4 {[%clk 0:01:55.9]} 22... O-O-O {[%clk 0:00:30]} 23. Rg1 {[%clk 0:01:55.2]}
23... e5 {[%clk 0:00:29.1]} 24. Qf1 {[%clk 0:01:47.1]} 24... Ng4+ {[%clk
0:00:26.2]} 25. Kh1 {[%clk 0:01:26.9]} 25... Rdg8 {[%clk 0:00:24.7]} 26. Rg3
{[%clk 0:01:27.1]} 26... c6 {[%clk 0:00:18.8]} 27. bxc6 {[%clk 0:01:25.8]} 27...
bxc6 {[%clk 0:00:19.1]} 28. Qg2 {[%clk 0:01:23.3]} 28... Rg7 {[%clk 0:00:15.5]}
29. Rg1 {[%clk 0:01:13]} 29... Rhg8 {[%clk 0:00:15.6]} 30. Ng5 {[%clk
0:01:13.3]} 30... Rxg5 {[%clk 0:00:13.5]} 31. hxg5 {[%clk 0:01:12.1]} 31... Rh8+
{[%clk 0:00:12]} 32. Rh3 {[%clk 0:01:11.9]} 32... Rxh3+ {[%clk 0:00:12.1]} 33.
Qxh3 {[%clk 0:01:12.8]} 33... Nxf2+ {[%clk 0:00:12.5]} 34. Kg2 {[%clk
0:01:13.7]} 34... Nxh3 {[%clk 0:00:11.1]} 0-1

[Event "*** Titled Tuesday Blitz"]
[Site "Chess.com"]
[Date "2020.10.20"]
[Round "11"]
[White "enriquetejedor"]
[Black "korkmaz16"]
[Result "1-0"]
[WhiteElo "2453"]
[BlackElo "2349"]
[TimeControl "180+1"]
[EndTime "12:07:23 PDT"]
[Termination "enriquetejedor won on time"]

1. d4 {[%clk 0:02:55.5]} 1... d5 {[%clk 0:02:59.4]} 2. c4 {[%clk 0:02:54.5]}
2... e5 {[%clk 0:02:58.2]} 3. e3 {[%clk 0:02:54.2]} 3... exd4 {[%clk 0:02:55.9]}
4. exd4 {[%clk 0:02:54.3]} 4... Nf6 {[%clk 0:02:56.1]} 5. Nf3 {[%clk 0:02:53.8]}
5... Bb4+ {[%clk 0:02:56]} 6. Bd2 {[%clk 0:02:53.6]} 6... Bxd2+ {[%clk
0:02:47.2]} 7. Nbxd2 {[%clk 0:02:53.2]} 7... O-O {[%clk 0:02:45.8]} 8. Be2
{[%clk 0:02:52.8]} 8... dxc4 {[%clk 0:02:44.9]} 9. O-O {[%clk 0:02:52.9]} 9...
b5 {[%clk 0:02:35.7]} 10. a4 {[%clk 0:02:52.9]} 10... c6 {[%clk 0:02:34.8]} 11.
b3 {[%clk 0:02:49]} 11... c3 {[%clk 0:02:33.1]} 12. Nb1 {[%clk 0:02:42.9]} 12...
b4 {[%clk 0:02:32.9]} 13. h3 {[%clk 0:02:36.7]} 13... a5 {[%clk 0:02:27.2]} 14.
Ne5 {[%clk 0:02:35.5]} 14... Qc7 {[%clk 0:02:18.1]} 15. Bf3 {[%clk 0:02:30.7]}
15... Bb7 {[%clk 0:02:14.2]} 16. Re1 {[%clk 0:02:30.2]} 16... Rd8 {[%clk
0:02:13.3]} 17. Qd3 {[%clk 0:02:30.1]} 17... c5 {[%clk 0:02:11.6]} 18. Nxc3
{[%clk 0:02:29.2]} 18... Rxd4 {[%clk 0:01:51.4]} 19. Nb5 {[%clk 0:02:27.2]}
19... Qxe5 {[%clk 0:01:13.3]} 20. Rxe5 {[%clk 0:02:26.1]} 20... Rxd3 {[%clk
0:01:13.3]} 21. Bxb7 {[%clk 0:02:26.3]} 21... Nbd7 {[%clk 0:01:11.9]} 22. Re3
{[%clk 0:02:08.6]} 22... Rxe3 {[%clk 0:01:10.2]} 23. fxe3 {[%clk 0:02:09.5]}
23... Re8 {[%clk 0:01:04.4]} 24. Kf2 {[%clk 0:02:06.4]} 24... Ne4+ {[%clk
0:01:04.1]} 25. Bxe4 {[%clk 0:02:05.9]} 25... Rxe4 {[%clk 0:01:05]} 26. Rd1
{[%clk 0:02:06.4]} 26... Re7 {[%clk 0:01:02.8]} 27. Nd6 {[%clk 0:02:04.9]} 27...
Nf6 {[%clk 0:00:54.3]} 28. Nc4 {[%clk 0:02:01]} 28... Ne4+ {[%clk 0:00:51.1]}
29. Kf3 {[%clk 0:02:01]} 29... g6 {[%clk 0:00:49.5]} 30. Rd8+ {[%clk 0:01:59.1]}
30... Kg7 {[%clk 0:00:49.3]} 31. Nxa5 {[%clk 0:01:57.8]} 31... Nc3 {[%clk
0:00:40.3]} 32. Nc4 {[%clk 0:01:57.2]} 32... Re6 {[%clk 0:00:39.4]} 33. a5
{[%clk 0:01:56.7]} 33... Rf6+ {[%clk 0:00:27.2]} 34. Kg3 {[%clk 0:01:55.3]}
34... Ne4+ {[%clk 0:00:27.1]} 35. Kh2 {[%clk 0:01:55.1]} 35... h5 {[%clk
0:00:25.7]} 36. Rd5 {[%clk 0:01:50.3]} 36... Rf1 {[%clk 0:00:24.7]} 37. g4
{[%clk 0:01:47]} 37... h4 {[%clk 0:00:20.2]} 38. Kg2 {[%clk 0:01:36.4]} 38...
Rf2+ {[%clk 0:00:20]} 39. Kg1 {[%clk 0:01:36.7]} 39... Ra2 {[%clk 0:00:17.6]}
40. Re5 {[%clk 0:01:36.1]} 40... f6 {[%clk 0:00:17.7]} 41. Rxe4 {[%clk 0:01:36]}
1-0

[Event "*** Titled Tuesday Blitz"]
[Site "Chess.com"]
[Date "2020.10.20"]
[Round "11"]
[White "IwkooO"]
[Black "AlexeiShirov"]
[Result "0-1"]
[WhiteElo "2631"]
[BlackElo "2802"]
[TimeControl "180+1"]
[EndTime "12:07:24 PDT"]
[Termination "AlexeiShirov won by resignation"]

1. e4 {[%clk 0:03:00.9]} 1... e5 {[%clk 0:02:52.3]} 2. Nf3 {[%clk 0:03:01]} 2...
Nc6 {[%clk 0:02:51.9]} 3. Bb5 {[%clk 0:03:01.1]} 3... a6 {[%clk 0:02:52]} 4. Ba4
{[%clk 0:03:01.5]} 4... Nf6 {[%clk 0:02:51.9]} 5. O-O {[%clk 0:02:59.5]} 5... b5
{[%clk 0:02:51.8]} 6. Bb3 {[%clk 0:02:59.7]} 6... Bc5 {[%clk 0:02:51.7]} 7. a4
{[%clk 0:02:59.3]} 7... Rb8 {[%clk 0:02:50.5]} 8. axb5 {[%clk 0:02:59.6]} 8...
axb5 {[%clk 0:02:49.7]} 9. Nxe5 {[%clk 0:03:00.1]} 9... Nxe5 {[%clk 0:02:48.8]}
10. d4 {[%clk 0:03:00.5]} 10... Bxd4 {[%clk 0:02:49]} 11. Qxd4 {[%clk
0:03:01.4]} 11... d6 {[%clk 0:02:49.5]} 12. f4 {[%clk 0:03:01.2]} 12... Nc6
{[%clk 0:02:49.3]} 13. Qd3 {[%clk 0:02:59.3]} 13... Nb4 {[%clk 0:02:43.2]} 14.
Bxf7+ {[%clk 0:02:45.3]} 14... Kxf7 {[%clk 0:02:36.1]} 15. Qb3+ {[%clk
0:02:45.2]} 15... Be6 {[%clk 0:02:21.9]} 16. Qxb4 {[%clk 0:02:44.3]} 16... Bc4
{[%clk 0:02:21.7]} 17. Re1 {[%clk 0:02:41.1]} 17... Re8 {[%clk 0:02:20.1]} 18.
b3 {[%clk 0:02:34]} 18... c5 {[%clk 0:02:14.8]} 19. Qc3 {[%clk 0:02:25.2]} 19...
Nxe4 {[%clk 0:02:12.5]} 20. Ra7+ {[%clk 0:02:25.2]} 20... Re7 {[%clk 0:02:05.2]}
21. Qa1 {[%clk 0:01:40.3]} 21... Bd5 {[%clk 0:01:45.5]} 22. Nc3 {[%clk
0:01:39.9]} 22... Ra8 {[%clk 0:01:43.7]} 23. Rxe7+ {[%clk 0:01:09.8]} 23... Qxe7
{[%clk 0:01:41.7]} 24. Nxd5 {[%clk 0:01:03.4]} 24... Qb7 {[%clk 0:01:39.9]} 25.
Qb2 {[%clk 0:00:43.5]} 25... Qxd5 {[%clk 0:01:38.6]} 26. Be3 {[%clk 0:00:44.1]}
26... b4 {[%clk 0:01:36.2]} 27. Qc1 {[%clk 0:00:37.1]} 27... Nc3 {[%clk
0:01:35.5]} 28. Bd2 {[%clk 0:00:36.7]} 28... Qd4+ {[%clk 0:01:34.3]} 29. Kh1
{[%clk 0:00:34.3]} 29... Ne4 {[%clk 0:01:28.6]} 30. Be3 {[%clk 0:00:34.1]} 30...
Qc3 {[%clk 0:01:19.5]} 31. Qd1 {[%clk 0:00:34.4]} 31... Re8 {[%clk 0:01:18.6]}
32. Kg1 {[%clk 0:00:16.8]} 32... Kf8 {[%clk 0:01:15.5]} 33. Re2 {[%clk
0:00:15.1]} 33... Qf6 {[%clk 0:01:12.9]} 34. Qd3 {[%clk 0:00:13.6]} 34... Qa1+
{[%clk 0:01:09.4]} 0-1

[Event "*** Titled Tuesday Blitz"]
[Site "Chess.com"]
[Date "2020.10.20"]
[Round "11"]
[White "Goryachkina"]
[Black "SCIM"]
[Result "1/2-1/2"]
[WhiteElo "2640"]
[BlackElo "2477"]
[TimeControl "180+1"]
[EndTime "12:07:25 PDT"]
[Termination "Game drawn by repetition"]

1. e4 {[%clk 0:03:00.9]} 1... c5 {[%clk 0:02:54.4]} 2. Nf3 {[%clk 0:03:00.5]}
2... e6 {[%clk 0:02:54.4]} 3. c3 {[%clk 0:03:00.2]} 3... Nf6 {[%clk 0:02:52.8]}
4. e5 {[%clk 0:03:00.4]} 4... Nd5 {[%clk 0:02:53.1]} 5. Bc4 {[%clk 0:03:00.7]}
5... d6 {[%clk 0:02:52.5]} 6. d4 {[%clk 0:02:59.4]} 6... cxd4 {[%clk 0:02:51.4]}
7. cxd4 {[%clk 0:02:59.3]} 7... Be7 {[%clk 0:02:51.8]} 8. O-O {[%clk 0:02:58.9]}
8... O-O {[%clk 0:02:51.5]} 9. Bxd5 {[%clk 0:02:51.5]} 9... exd5 {[%clk
0:02:48.9]} 10. Nc3 {[%clk 0:02:50.1]} 10... Be6 {[%clk 0:02:48.1]} 11. Bf4
{[%clk 0:02:49.8]} 11... Nc6 {[%clk 0:02:46.9]} 12. exd6 {[%clk 0:02:48]} 12...
Bxd6 {[%clk 0:02:46.3]} 13. Bxd6 {[%clk 0:02:48.3]} 13... Qxd6 {[%clk
0:02:45.7]} 14. h3 {[%clk 0:02:48.8]} 14... Rfe8 {[%clk 0:02:41.2]} 15. Re1
{[%clk 0:02:48.6]} 15... Bf5 {[%clk 0:02:35.3]} 16. Qd2 {[%clk 0:02:47.2]} 16...
Be4 {[%clk 0:02:34]} 17. Ng5 {[%clk 0:02:43.3]} 17... h6 {[%clk 0:02:11.2]} 18.
Ngxe4 {[%clk 0:02:21.8]} 18... dxe4 {[%clk 0:02:12.1]} 19. Rxe4 {[%clk
0:02:17.4]} 19... Rxe4 {[%clk 0:02:09.6]} 20. Nxe4 {[%clk 0:02:17.8]} 20... Qxd4
{[%clk 0:02:09.9]} 21. Qxd4 {[%clk 0:02:17.7]} 21... Nxd4 {[%clk 0:02:09.3]} 22.
Rd1 {[%clk 0:02:17.6]} 22... Rd8 {[%clk 0:02:02.6]} 23. Kf1 {[%clk 0:02:17.2]}
23... Kf8 {[%clk 0:01:54.3]} 24. Nc5 {[%clk 0:02:05.8]} 24... b6 {[%clk
0:01:51.9]} 25. Nb3 {[%clk 0:02:03.7]} 25... Ne6 {[%clk 0:01:48.1]} 26. Rxd8+
{[%clk 0:02:03.7]} 26... Nxd8 {[%clk 0:01:47.9]} 27. Nd4 {[%clk 0:02:03.9]}
27... Ke7 {[%clk 0:01:46.1]} 28. Ke2 {[%clk 0:02:03.6]} 28... a6 {[%clk
0:01:39.1]} 29. Ke3 {[%clk 0:02:03.5]} 29... Ne6 {[%clk 0:01:31.2]} 30. Nf5+
{[%clk 0:02:03.2]} 30... Kd7 {[%clk 0:01:00.1]} 31. g4 {[%clk 0:02:02.7]} 31...
Kc6 {[%clk 0:00:51]} 32. h4 {[%clk 0:02:02.8]} 32... Kd5 {[%clk 0:00:43.7]} 33.
f4 {[%clk 0:02:02.7]} 33... b5 {[%clk 0:00:39.7]} 34. h5 {[%clk 0:01:59.3]}
34... a5 {[%clk 0:00:36.9]} 35. Ne7+ {[%clk 0:00:56.4]} 35... Kd6 {[%clk
0:00:33.7]} 36. Nf5+ {[%clk 0:00:53.7]} 36... Kd5 {[%clk 0:00:33.3]} 37. Ne7+
{[%clk 0:00:53.7]} 37... Kd6 {[%clk 0:00:33]} 38. Nf5+ {[%clk 0:00:53.9]} 38...
Kd5 {[%clk 0:00:33.5]} 1/2-1/2

[Event "*** Titled Tuesday Blitz"]
[Site "Chess.com"]
[Date "2020.10.20"]
[Round "11"]
[White "RaunakSadhwani2005"]
[Black "DenisQ"]
[Result "1-0"]
[WhiteElo "2943"]
[BlackElo "2674"]
[TimeControl "180+1"]
[EndTime "12:07:27 PDT"]
[Termination "RaunakSadhwani2005 won by resignation"]

1. e4 {[%clk 0:03:00.9]} 1... c6 {[%clk 0:02:56.7]} 2. Nf3 {[%clk 0:03:01.3]}
2... d5 {[%clk 0:02:57.6]} 3. Nc3 {[%clk 0:03:01.9]} 3... Bg4 {[%clk 0:02:57]}
4. h3 {[%clk 0:03:01.6]} 4... Bh5 {[%clk 0:02:57.3]} 5. exd5 {[%clk 0:02:58.4]}
5... cxd5 {[%clk 0:02:57.4]} 6. g4 {[%clk 0:02:52.2]} 6... Bg6 {[%clk 0:02:57]}
7. d4 {[%clk 0:02:51.8]} 7... Nc6 {[%clk 0:02:54.6]} 8. Bb5 {[%clk 0:02:51.4]}
8... Rc8 {[%clk 0:02:47.1]} 9. Ne5 {[%clk 0:02:51.3]} 9... e6 {[%clk 0:02:44.8]}
10. h4 {[%clk 0:02:51.5]} 10... f6 {[%clk 0:02:44.4]} 11. h5 {[%clk 0:02:42.7]}
11... Bxc2 {[%clk 0:02:39.6]} 12. Qxc2 {[%clk 0:02:42]} 12... fxe5 {[%clk
0:02:39.3]} 13. dxe5 {[%clk 0:02:42.6]} 13... Bb4 {[%clk 0:02:35.8]} 14. a3
{[%clk 0:02:28.3]} 14... Bxc3+ {[%clk 0:02:34.3]} 15. Qxc3 {[%clk 0:02:29.2]}
15... Nh6 {[%clk 0:02:17.6]} 16. Bxh6 {[%clk 0:02:10.4]} 16... gxh6 {[%clk
0:02:18.5]} 17. Qd2 {[%clk 0:01:52]} 17... Qg5 {[%clk 0:02:16.2]} 18. Qxg5
{[%clk 0:01:19]} 18... hxg5 {[%clk 0:02:17.1]} 19. Rc1 {[%clk 0:01:10.1]} 19...
Ke7 {[%clk 0:02:13]} 20. Bxc6 {[%clk 0:01:08.6]} 20... Rxc6 {[%clk 0:02:11.6]}
21. Rxc6 {[%clk 0:01:08.5]} 21... bxc6 {[%clk 0:02:12.5]} 22. Ke2 {[%clk
0:01:03.7]} 22... Rf8 {[%clk 0:02:11.5]} 23. Rc1 {[%clk 0:01:02.3]} 23... Kd7
{[%clk 0:02:09.1]} 24. Rc3 {[%clk 0:01:02]} 24... Rf4 {[%clk 0:02:05.3]} 25. Rf3
{[%clk 0:00:54.7]} 25... Re4+ {[%clk 0:01:43.7]} 26. Kd3 {[%clk 0:00:54.8]}
26... Ke7 {[%clk 0:01:43.5]} 27. Rf6 {[%clk 0:00:54.1]} 27... Rxe5 {[%clk
0:01:24.7]} 28. Rh6 {[%clk 0:00:53.9]} 28... Re4 {[%clk 0:01:23.8]} 29. Rxh7+
{[%clk 0:00:54.1]} 29... Kf6 {[%clk 0:01:22.5]} 30. f3 {[%clk 0:00:51.5]} 30...
Rf4 {[%clk 0:01:22.7]} 31. Ke2 {[%clk 0:00:52.1]} 31... a5 {[%clk 0:01:22.1]}
32. Rh6+ {[%clk 0:00:50.7]} 32... Kf7 {[%clk 0:01:20.6]} 33. Rg6 {[%clk
0:00:50.9]} 33... Rc4 {[%clk 0:01:19.8]} 34. Rxg5 {[%clk 0:00:50.9]} 34... Rc2+
{[%clk 0:01:19.7]} 35. Ke3 {[%clk 0:00:48.1]} 35... Rxb2 {[%clk 0:01:20.6]} 36.
h6 {[%clk 0:00:48.5]} 36... Rh2 {[%clk 0:01:20]} 37. Rg7+ {[%clk 0:00:48.4]}
37... Kf8 {[%clk 0:00:57.4]} 38. g5 {[%clk 0:00:49.3]} 38... e5 {[%clk
0:00:57.2]} 39. Rc7 {[%clk 0:00:46.6]} 39... Rh5 {[%clk 0:00:56.2]} 40. h7
{[%clk 0:00:46]} 1-0

[Event "*** Titled Tuesday Blitz"]
[Site "Chess.com"]
[Date "2020.10.20"]
[Round "11"]
[White "kai_nov"]
[Black "Piotrek1979"]
[Result "1-0"]
[WhiteElo "2294"]
[BlackElo "2398"]
[TimeControl "180+1"]
[EndTime "12:07:27 PDT"]
[Termination "kai_nov won by resignation"]

1. d4 {[%clk 0:03:00.9]} 1... Nc6 {[%clk 0:02:59]} 2. d5 {[%clk 0:02:59.5]} 2...
Ne5 {[%clk 0:02:58.4]} 3. f4 {[%clk 0:02:58.8]} 3... Ng6 {[%clk 0:02:55.2]} 4.
e4 {[%clk 0:02:58.2]} 4... e6 {[%clk 0:02:41.9]} 5. dxe6 {[%clk 0:02:57.3]} 5...
fxe6 {[%clk 0:02:39.9]} 6. Nf3 {[%clk 0:02:53.9]} 6... Bc5 {[%clk 0:02:38.2]} 7.
Nc3 {[%clk 0:02:51.7]} 7... N8e7 {[%clk 0:02:31.7]} 8. h4 {[%clk 0:02:44.2]}
8... O-O {[%clk 0:02:29.1]} 9. h5 {[%clk 0:02:35.8]} 9... Nxf4 {[%clk
0:02:27.7]} 10. g3 {[%clk 0:02:35.6]} 10... Nxh5 {[%clk 0:02:06]} 11. Rxh5
{[%clk 0:02:34.8]} 11... d6 {[%clk 0:02:05.4]} 12. e5 {[%clk 0:02:26.4]} 12...
d5 {[%clk 0:02:03.2]} 13. Bd3 {[%clk 0:02:16.6]} 13... g6 {[%clk 0:02:01.9]} 14.
Rh2 {[%clk 0:02:03.7]} 14... Nf5 {[%clk 0:01:59.3]} 15. Bg5 {[%clk 0:01:51.4]}
15... Qe8 {[%clk 0:01:52.3]} 16. Qe2 {[%clk 0:01:32.9]} 16... Nxg3 {[%clk
0:01:49.7]} 17. Qg2 {[%clk 0:01:32.7]} 17... Ne4 {[%clk 0:01:39.8]} 18. Bxe4
{[%clk 0:01:25.3]} 18... dxe4 {[%clk 0:01:39]} 19. Nxe4 {[%clk 0:01:25.9]} 19...
Bb4+ {[%clk 0:01:22]} 20. c3 {[%clk 0:01:25.2]} 20... Qc6 {[%clk 0:01:16.2]} 21.
Nf6+ {[%clk 0:01:20.3]} 21... Rxf6 {[%clk 0:01:12.8]} 22. Bxf6 {[%clk
0:01:20.5]} 22... Bxc3+ {[%clk 0:01:12.1]} 23. bxc3 {[%clk 0:00:45.4]} 23...
Qxc3+ {[%clk 0:01:13]} 24. Ke2 {[%clk 0:00:44.1]} 24... Qb2+ {[%clk 0:01:07.2]}
25. Nd2 {[%clk 0:00:41.3]} 25... Qxa1 {[%clk 0:01:02.2]} 26. Rxh7 {[%clk
0:00:32.9]} 26... Kxh7 {[%clk 0:00:35.5]} 27. Qh3+ {[%clk 0:00:31.8]} 1-0